bitfinex/quotes_ETHUSD_20240822
["timestamp","ask_amount","ask_price","bid_price","bid_amount"]
[1724287702133,4.899948,2637.0,2636.5,2.4221]
[1724287702297,0.55,2637.1,2636.2,2.4221]
[1724287702298,0.55,2636.9,2636.2,2.4221]
[1724287702499,3.79285,2636.6,2636.2,2.4221]
[1724287703140,3.79299,2636.5,2636.2,2.4221]
[1724287703341,3.79285,2636.6,2636.2,2.4221]
[1724287704729,3.793,2636.5,2636.2,2.4221]
[1724287705508,3.79285,2636.6,2636.2,2.4221]
[1724287705947,7.58574,2636.6,2636.2,2.4221]
[1724287706652,3.79285,2636.6,2636.2,2.4221]
[1724287706856,3.79292,2636.5,2636.2,2.4221]
[1724287707358,3.79292,2636.5,2636.1,0.11694952]
[1724287707359,4.172212,2636.5,2636.1,0.11694952]
[1724287707726,0.379292,2636.5,2636.1,0.11694952]
[1724287708061,0.55,2636.4,2636.1,0.11694952]
[1724287708255,3.79268,2636.7,2636.1,0.11694952]
[1724287708558,3.79259,2636.8,2636.1,0.11694952]
[1724287708850,3.79287,2636.6,2636.1,0.11694952]
[1724287709753,7.58574,2636.6,2636.1,0.11694952]
[1724287710420,3.79287,2636.6,2636.1,0.11694952]
[1724287710857,0.04497982,2636.5,2636.1,0.11694952]
[1724287711412,3.83790982,2636.5,2636.1,0.11694952]
[1724287712859,0.04497982,2636.5,2636.1,0.11694952]
[1724287713412,3.83792982,2636.5,2636.1,0.11694952]
[1724287713849,3.83792982,2636.5,2636.2,2.4245]
[1724287713850,0.04497982,2636.5,2636.2,2.4245]
[1724287714508,3.79306,2636.4,2636.2,2.4245]
[1724287714763,0.04483627,2636.4,2636.2,2.4245]
[1724287715260,0.04477158,2636.3,2636.2,2.4245]
[1724287715413,7.5857,2636.6,2636.2,2.4245]
[1724287715614,0.04496533,2636.5,2636.2,2.4245]
[1724287715847,3.79319,2636.3,2636.2,2.4245]
[1724287716090,3.79319,2636.3,2636.1,0.11694952]
[1724287716360,3.83782563,2636.3,2636.1,0.11694952]
[1724287717359,0.04463563,2636.3,2636.1,0.11694952]
[1724287719373,0.04463563,2636.3,2636.2,2.4787]
[1724287719666,0.39611028,2636.4,2636.2,2.4787]
[1724287719667,0.39611028,2636.4,2636.2,3.11761095]
[1724287719964,0.04475844,2636.3,2636.2,2.4787]
[1724287721637,0.39611028,2636.4,2636.2,2.4787]
[1724287721831,0.04462756,2636.3,2636.2,2.4787]
[1724287722218,0.04462756,2636.3,2636.1,0.11694952]
[1724287725349,3.83783756,2636.3,2636.1,0.11694952]
[1724287725570,0.04462756,2636.3,2636.1,0.11694952]
[1724287726122,0.04462756,2636.3,2636.1,0.35458447]
[1724287726322,0.04462756,2636.3,2636.2,9.83706]
[1724287726540,0.39611028,2636.4,2636.3,6.04359]
[1724287727770,0.39611028,2636.4,2636.3,2.2504]
[1724287728519,0.39611028,2636.4,2636.3,6.04359]
[1724287728724,0.39611028,2636.4,2636.3,7.06273245]
[1724287731375,0.39611028,2636.4,2636.3,6.04359]
[1724287734656,0.39611028,2636.4,2636.1,0.11694952]
[1724287734859,3.79322,2636.3,2636.1,0.11694952]
[1724287735178,0.04463967,2636.3,2636.1,0.11694952]
[1724287738949,0.04463967,2636.3,2636.1,3.91034952]
[1724287739176,0.39611028,2636.4,2636.3,3.79319]
[1724287739683,0.44096357,2636.4,2636.3,3.79319]
[1724287739835,0.44096357,2636.4,2636.3,7.58638]
[1724287740042,0.39611028,2636.4,2636.3,10.05778]
[1724287740344,0.39611028,2636.4,2636.3,6.26459]
[1724287740546,0.39611028,2636.4,2636.3,11.11437745]
[1724287740930,0.39611028,2636.4,2636.3,14.90756745]
[1724287741133,3.79176,2637.3,2636.9,2.4041]
[1724287741331,3.79176,2637.3,2637.0,0.619655]
[1724287741596,0.44134317,2637.2,2636.9,2.4041]
[1724287742551,0.44134317,2637.2,2636.6,6.19682]
[1724287743178,0.44134317,2637.2,2636.6,2.4041]
[1724287743179,3.79218,2637.1,2636.6,2.4041]
[1724287743567,0.04509829,2637.0,2636.6,2.4041]
[1724287744294,0.04509829,2637.0,2636.6,6.19685]
[1724287744638,0.04509829,2637.0,2636.6,9.98952]
[1724287744884,0.04509829,2637.0,2636.6,9.98944]
[1724287745455,0.04509829,2637.0,2636.6,9.888714]
[1724287745651,0.39616188,2637.2,2636.9,3.79233]
[1724287745852,0.04517459,2637.1,2637.0,3.79209]
[1724287746796,0.39616188,2637.2,2637.0,3.79209]
[1724287746994,0.39616188,2637.2,2637.0,4.788084]
[1724287747594,0.39616188,2637.2,2637.1,10.06288]
[1724287747831,0.39616188,2637.2,2637.1,29.50288]
[1724287748023,0.39616188,2637.2,2637.1,36.29492]
[1724287748190,0.59463907,2638.6,2637.1,36.29492]
[1724287748191,3.79006,2638.5,2637.9,3.79084]
[1724287748409,0.39616326,2637.9,2637.8,10.06082]
[1724287748840,7.57936,2638.8,2638.1,7.58102]
[1724287748841,3.78967,2638.8,2638.1,7.58102]
[1724287749011,6.82397138,2639.0,2638.1,7.58102]
[1724287749012,3.78947,2638.9,2638.3,3.79029]
[1724287749214,3.78947,2638.9,2638.3,6.23021]
[1724287749215,0.44267452,2638.7,2638.3,6.23021]
[1724287749514,0.39607617,2638.7,2638.3,10.02042]
[1724287750098,0.39607617,2638.7,2638.3,10.02043]
[1724287750460,0.39607617,2638.7,2638.3,6.23021]
[1724287750656,0.39607617,2638.7,2638.3,10.61746257]
[1724287750807,0.39607617,2638.7,2638.5,3.79]
[1724287751208,0.04780247,2638.6,2638.5,3.79]
[1724287751447,0.04780247,2638.6,2638.3,10.61746257]
[1724287751755,0.39607617,2638.7,2638.4,1.06174626]
[1724287751923,0.04786752,2638.5,2638.4,1.06174626]
[1724287752130,0.39607617,2638.7,2638.4,1.06174626]
[1724287752438,0.04786752,2638.5,2638.4,4.85189626]
[1724287752763,0.04784333,2638.5,2638.4,4.85189626]
[1724287753057,0.39607617,2638.7,2638.4,4.85189626]
[1724287753239,0.39607617,2638.7,2638.3,6.82725257]
[1724287753759,0.04795417,2638.6,2638.3,6.82725257]
[1724287754056,3.79029,2638.4,2638.1,7.49]
[1724287754260,3.79029,2638.4,2637.9,2.3783]
[1724287754555,0.04769979,2638.3,2637.9,2.3783]
[1724287754964,0.04769979,2638.3,2637.7,9.8683]
[1724287755257,3.7903,2638.4,2637.8,5.99277]
[1724287755471,3.7903,2638.4,2637.8,3.79094]
[1724287755770,0.04761759,2638.3,2637.8,3.79094]
[1724287756762,3.83793759,2638.3,2637.8,3.79094]
[1724287756917,0.04761759,2638.3,2637.8,3.79094]
[1724287757974,0.04761759,2638.3,2637.7,9.8683]
[1724287757975,3.79055,2638.2,2637.7,9.8683]
[1724287758106,3.79076,2638.0,2637.4,33.08232]
[1724287758416,7.96492676,2638.2,2637.6,3.79128]
[1724287758612,0.0467365,2637.9,2637.6,3.79128]
[1724287758819,3.79061,2638.1,2637.4,36.87382]
[1724287759163,3.79061,2638.1,2637.4,37.01475067]
[1724287759315,3.79061,2638.1,2637.5,3.79143]
[1724287759516,0.04684741,2638.0,2637.4,33.22324067]
[1724287759737,3.79092,2637.9,2637.4,33.22324067]
[1724287759919,0.04691789,2637.9,2637.5,3.70148707]
[1724287760141,3.7907,2638.1,2637.5,7.49284707]
[1724287760344,0.04685328,2637.8,2637.6,1.96315888]
[1724287760543,3.7907,2638.1,2637.6,1.96315888]
[1724287760734,3.7907,2638.1,2637.5,11.28420707]
[1724287760932,0.04700565,2638.0,2637.5,7.49284707]
[1724287761272,3.79032,2638.3,2637.7,3.79115]
[1724287761419,0.04691789,2637.9,2637.7,4.91954771]
[1724287761803,3.79032,2638.3,2637.7,3.79115]
[1724287762205,0.0472043,2638.2,2637.7,3.79115]
[1724287762866,0.0472043,2638.2,2637.8,6.11326]
[1724287763067,6.11806,2638.6,2637.9,3.79084]
[1724287763398,0.04746749,2638.5,2637.9,7.58161]
[1724287763703,0.04746749,2638.5,2637.9,3.79077]
[1724287764502,0.39613032,2638.4,2637.9,3.79077]
[1724287764813,0.443429,2638.4,2637.6,19.44]
[1724287764965,3.79055,2638.2,2637.6,19.44]
[1724287765309,3.79055,2638.2,2637.6,23.23118]
[1724287765600,0.04706769,2638.1,2638.0,3.79075]
[1724287766021,0.39613032,2638.4,2638.0,3.79075]
[1724287766171,0.39613032,2638.4,2638.1,0.612285]
[1724287766497,0.04721057,2638.3,2638.1,0.612285]
[1724287767295,0.04721057,2638.3,2637.9,6.12297]
[1724287768001,0.04721057,2638.3,2638.0,3.79073]
[1724287770078,0.04721057,2638.3,2638.2,3.79046]
[1724287770280,0.04721057,2638.3,2638.2,4.548579]
[1724287771234,0.04721057,2638.3,2638.2,0.758119]
[1724287771581,0.04721057,2638.3,2638.0,3.79062]
[1724287773048,0.04721057,2638.3,2638.0,7.58128]
[1724287773182,0.04721057,2638.3,2638.0,7.58129]
[1724287773509,0.04721057,2638.3,2638.0,3.79062]
[1724287773692,0.04721057,2638.3,2638.0,4.402892]
[1724287775282,0.04721057,2638.3,2638.0,8.193552]
[1724287776129,0.04721057,2638.3,2638.0,4.402892]
[1724287776629,0.04721057,2638.3,2638.0,8.193562]
[1724287776931,0.04721057,2638.3,2638.0,4.402892]
[1724287778728,0.04721057,2638.3,2638.0,8.193552]
[1724287779332,0.04721057,2638.3,2638.0,4.402892]
[1724287779681,0.04721057,2638.3,2638.0,8.193552]
[1724287779884,0.04721057,2638.3,2638.0,8.193542]
[1724287780117,0.04721057,2638.3,2638.1,3.79058]
[1724287780715,0.04721057,2638.3,2638.0,4.402892]
[1724287781313,0.04721057,2638.3,2638.0,8.193552]
[1724287782289,0.04721057,2638.3,2638.0,4.402892]
[1724287786192,0.04721057,2638.3,2637.9,21.7721]
[1724287786390,3.79062,2638.1,2637.9,19.44]
[1724287787077,0.04701986,2638.0,2637.7,19.44]
[1724287791322,0.39609379,2638.1,2637.7,19.44]
[1724287791530,0.04681641,2638.0,2637.7,19.44]
[1724287791965,0.04681641,2638.0,2637.7,23.23116]
[1724287792347,0.04681641,2638.0,2637.8,3.79094]
[1724287792561,0.39609379,2638.1,2637.8,6.27734]
[1724287792865,0.39609379,2638.1,2637.8,25.71734]
[1724287793267,0.39609379,2638.1,2637.8,21.9264]
[1724287794187,0.39609379,2638.1,2637.8,19.44]
[1724287794368,3.79089,2637.9,2637.8,19.44]
[1724287794546,0.04673267,2637.9,2637.8,19.44]
[1724287794742,2.4667,2637.9,2637.8,19.44]
[1724287794969,6.25759,2637.9,2637.2,6.79181]
[1724287795282,6.25759,2637.9,2637.2,6.7918]
[1724287795283,5.29271912,2637.8,2637.2,6.7918]
[1724287795506,5.29271912,2637.8,2637.2,9.66362]
[1724287795661,5.29271912,2637.8,2637.3,3.79175]
[1724287796011,5.24633,2637.6,2637.0,3.79211]
[1724287796297,5.24633,2637.6,2637.1,3.0]
[1724287796444,0.04632713,2637.5,2637.1,3.0]
[1724287797388,0.04632713,2637.5,2637.1,6.792]
[1724287797687,3.79104,2637.8,2637.1,8.099049]
[1724287797985,7.58219,2637.8,2637.1,8.099049]
[1724287798188,3.8377227,2637.7,2637.1,6.792]
[1724287799647,0.0465027,2637.7,2637.2,3.79187]
[1724287801492,0.0465027,2637.7,2637.2,7.58374]
[1724287801696,0.0465027,2637.7,2637.2,3.79187]
[1724287801880,0.0465027,2637.7,2637.2,7.58368]
[1724287802255,0.0465027,2637.7,2637.2,3.79181]
[1724287802256,0.39607884,2637.6,2637.2,3.79181]
[1724287802651,0.0458546,2637.5,2637.2,3.79181]
[1724287804065,2.4054546,2637.5,2637.2,3.79181]
[1724287804585,0.0458546,2637.5,2637.2,7.58362]
[1724287804814,0.0458546,2637.5,2637.2,4.550172]
[1724287805108,0.0458546,2637.5,2637.3,6.2837]
[1724287805593,0.0458546,2637.5,2637.4,3.79161]
[1724287805794,0.0458546,2637.5,2637.4,7.58322]
[1724287806120,0.0458546,2637.5,2637.3,2.492]
[1724287806121,0.39607884,2637.6,2637.5,7.58292]
[1724287806285,0.39607884,2637.6,2637.5,8.590412]
[1724287807866,0.39607884,2637.6,2637.5,4.798952]
[1724287809221,0.39607884,2637.6,2637.5,1.007492]
[1724287809707,0.44058278,2637.6,2637.5,1.007492]
[1724287809915,0.44058278,2637.6,2637.3,6.28373]
[1724287810217,0.44058278,2637.6,2637.2,3.79182]
[1724287810369,0.44058278,2637.6,2637.1,6.07252]
[1724287810717,2.454,2637.5,2637.0,3.79211]
[1724287810885,2.454,2637.5,2637.1,3.0]
[1724287811207,0.04442915,2637.4,2637.1,3.0]
[1724287811407,0.04442915,2637.4,2637.1,6.79193]
[1724287811611,0.04442915,2637.4,2637.2,4.850282]
[1724287811814,2.65797884,2637.6,2637.2,4.850282]
[1724287811966,0.04438796,2637.5,2637.2,3.79188]
[1724287815919,0.04438796,2637.5,2637.2,7.58366]
[1724287816217,0.04438796,2637.5,2637.3,6.12987]
[1724287816417,0.04438796,2637.5,2637.4,3.79161]
[1724287817021,0.04438796,2637.5,2637.4,7.58322]
[1724287817177,0.04438796,2637.5,2637.4,8.575362]
[1724287819227,0.04438796,2637.5,2637.2,3.79185]
[1724287819228,2.45078796,2637.5,2637.2,3.79185]
[1724287819439,2.45078796,2637.5,2637.0,3.79209]
[1724287819624,2.45078796,2637.5,2637.0,7.58419]
[1724287819784,2.45078796,2637.5,2637.0,3.79209]
[1724287820127,2.45078796,2637.5,2637.1,3.79204]
[1724287820338,3.79161,2637.4,2636.9,3.7922]
[1724287820487,6.24236796,2637.5,2637.0,3.79218]
[1724287820680,0.04418918,2637.3,2637.0,3.79218]
[1724287820928,0.44048532,2637.4,2637.0,3.79218]
[1724287821228,0.39620834,2637.4,2637.0,3.79218]
[1724287821525,0.04421234,2637.3,2637.0,3.79218]
[1724287823692,3.83607234,2637.3,2636.8,2.3586]
[1724287824339,3.83607234,2637.3,2636.8,3.79245]
[1724287825838,3.83607234,2637.3,2636.8,7.5849]
[1724287826142,0.04421234,2637.3,2636.8,7.5849]
[1724287826644,0.04421234,2637.3,2636.8,7.58482]
[1724287826811,0.04421234,2637.3,2636.9,3.79232]
[1724287827697,0.04421234,2637.3,2637.0,3.79215]
[1724287828106,0.04421234,2637.3,2637.0,4.550602]
[1724287828326,0.04421234,2637.3,2637.2,3.7919]
[1724287828524,0.04421234,2637.3,2637.2,7.5838]
[1724287828724,0.04421234,2637.3,2637.2,10.0067]
[1724287829092,0.39620834,2637.4,2637.3,3.79175]
[1724287829546,0.44040772,2637.4,2637.3,3.79175]
[1724287830054,0.44040772,2637.4,2637.3,4.792405]
[1724287831458,0.44040772,2637.4,2637.0,19.44]
[1724287831627,0.44040772,2637.4,2637.0,23.23216]
[1724287831951,0.44040772,2637.4,2637.0,23.2321]
[1724287832154,0.48813743,2637.4,2637.0,23.2321]
[1724287834526,0.48813743,2637.4,2637.0,3.7921]
[1724287834913,0.48813743,2637.4,2637.1,3.79203]
[1724287835316,0.48813743,2637.4,2637.1,4.796722]
[1724287835529,0.48813743,2637.4,2637.2,3.79185]
[1724287835830,0.48813743,2637.4,2637.3,3.79175]
[1724287836233,0.48813743,2637.4,2637.2,3.79185]
[1724287836411,0.39620834,2637.4,2637.2,3.79185]
[1724287837398,0.39620834,2637.4,2636.9,6.04507]
[1724287837601,0.39620834,2637.4,2636.9,11.870073]
[1724287837812,0.39620834,2637.4,2637.0,3.79218]
[1724287837813,0.09181369,2637.3,2637.0,3.79218]
[1724287837957,0.39620834,2637.4,2637.0,3.79218]
[1724287838306,0.09179101,2637.3,2637.0,3.79218]
[1724287838660,0.39620834,2637.4,2637.0,3.79218]
[1724287839097,0.09176832,2637.3,2637.0,3.79218]
[1724287839469,0.39620834,2637.4,2637.0,3.79218]
[1724287839856,0.09176832,2637.3,2637.0,3.79218]
[1724287840114,0.39620834,2637.4,2636.9,5.825003]
[1724287840252,0.39620834,2637.4,2637.0,0.47470023]
[1724287840459,0.09183637,2637.3,2637.0,3.79217]
[1724287841261,0.09183637,2637.3,2636.9,3.79221]
[1724287841502,0.09183637,2637.3,2637.0,4.26686574]
[1724287841658,0.09183637,2637.3,2636.8,3.79243]
[1724287841862,0.09183637,2637.3,2636.9,0.47471168]
[1724287842101,0.09183637,2637.3,2636.8,3.79243]
[1724287842309,0.09183637,2637.3,2636.8,7.58482]
[1724287842459,0.09183637,2637.3,2636.9,3.79232]
[1724287843462,0.09183637,2637.3,2637.1,3.79195]
[1724287844008,0.39620834,2637.4,2637.1,3.79195]
[1724287844213,0.09180411,2637.3,2637.1,3.79195]
[1724287844367,0.39620834,2637.4,2637.1,3.79195]
[1724287844713,3.79185,2637.3,2636.7,18.07509]
[1724287844913,3.79185,2637.3,2636.7,14.28252]
[1724287845209,0.09171811,2637.2,2636.7,14.28252]
[1724287845611,0.09171811,2637.2,2636.7,15.4260737]
[1724287845762,0.09171811,2637.2,2636.8,3.79244]
[1724287845962,0.39620834,2637.4,2636.8,3.79244]
[1724287846264,0.09180411,2637.3,2636.8,3.79244]
[1724287846814,2.4178,2637.2,2636.8,3.79244]
[1724287846978,0.09161904,2637.1,2636.8,3.79244]
[1724287848503,0.09161904,2637.1,2636.8,7.58482]
[1724287848999,0.09161904,2637.1,2636.8,3.79238]
[1724287853438,0.09161904,2637.1,2637.0,3.79218]
[1724287853609,0.39622697,2637.2,2637.1,3.79204]
[1724287854424,0.39622697,2637.2,2637.1,7.58408]
[1724287857069,0.48455617,2637.2,2637.1,7.58408]
[1724287857261,0.48455617,2637.2,2637.1,3.79204]
[1724287861922,0.48455617,2637.2,2636.7,3.79253]
[1724287862232,0.39622697,2637.2,2636.8,2.3277]
[1724287862631,0.08825413,2637.1,2636.8,2.3277]
[1724287862847,0.39622697,2637.2,2636.8,2.3277]
[1724287863169,0.08827194,2637.1,2636.8,2.3277]
[1724287863585,0.39622697,2637.2,2636.8,2.3277]
[1724287863894,0.39622697,2637.2,2636.7,6.115783]
[1724287863895,0.08827194,2637.1,2636.5,25.60478]
[1724287864196,7.67258194,2637.1,2636.6,3.0]
[1724287864482,3.79264,2636.7,2636.3,19.44]
[1724287864679,3.79264,2636.7,2636.1,7.60694952]
[1724287864680,3.79264,2636.7,2636.1,27.04694952]
[1724287864891,1.54388399,2636.6,2636.1,27.04694952]
[1724287865038,1.456,2636.6,2636.1,27.04694952]
[1724287865231,7.67381988,2636.5,2636.1,27.04694952]
[1724287865488,4.833397,2636.5,2636.1,27.04694952]
[1724287866279,4.833397,2636.5,2636.1,0.11694952]
[1724287868697,3.79307,2636.4,2636.1,0.11694952]
[1724287868983,6.20137,2636.4,2636.1,0.11694952]
[1724287869301,7.67411726,2636.3,2636.1,0.11694952]
[1724287869645,3.79333,2636.2,2636.1,0.11694952]
[1724287869844,0.08719694,2636.2,2636.1,0.11694952]
[1724287870163,1.00820569,2636.2,2636.1,0.11694952]
[1724287870503,1.09540263,2636.2,2636.1,0.11694952]
[1724287871244,0.08719694,2636.2,2636.1,0.11694952]
[1724287871555,3.79292,2636.5,2636.1,0.11694952]
[1724287871757,0.08684602,2636.2,2636.1,0.11694952]
[1724287871983,3.79292,2636.5,2636.1,0.11694952]
[1724287872291,3.79307,2636.4,2636.1,0.11694952]
[1724287872443,0.758599,2636.3,2636.1,0.11694952]
[1724287872647,0.08684602,2636.2,2636.1,0.11694952]
[1724287872901,3.79292,2636.5,2636.1,0.11694952]
[1724287873044,0.08684602,2636.2,2636.1,0.11694952]
[1724287873244,3.79292,2636.5,2636.1,0.11694952]
[1724287873488,0.08701814,2636.4,2636.1,0.11694952]
[1724287873741,0.75533709,2636.4,2636.1,0.11694952]
[1724287875472,4.54843709,2636.4,2636.1,0.11694952]
[1724287878727,3.79327,2636.3,2636.1,0.11694952]
[1724287878875,3.79333,2636.2,2636.1,0.11694952]
[1724287879075,3.88017602,2636.2,2636.1,0.11694952]
[1724287879388,4.94886252,2636.2,2636.1,0.11694952]
[1724287879591,1.15553252,2636.2,2636.1,0.11694952]
[1724287880475,1.55177375,2636.2,2636.1,0.11694952]
[1724287883026,11.56153375,2636.2,2636.1,0.11694952]
[1724287883190,11.43841803,2636.2,2636.1,0.11694952]
[1724287883818,7.09508803,2636.2,2636.1,0.11694952]
[1724287884130,0.48308725,2636.2,2636.1,0.11694952]
[1724287889833,0.48308725,2636.2,2636.1,2.38024952]
[1724287890049,0.48308725,2636.2,2636.1,2.99763347]
[1724287891717,0.48308725,2636.2,2636.1,6.79111347]
[1724287892135,0.39624123,2636.2,2636.1,6.79111347]
[1724287892361,0.48110859,2636.2,2636.1,6.79111347]
[1724287893373,0.39624123,2636.2,2636.1,10.58459347]
[1724287894430,0.39624123,2636.2,2636.1,35.27507347]
[1724287894626,0.39624123,2636.2,2636.1,38.27507347]
[1724287896009,0.39624123,2636.2,2636.1,34.48159347]
[1724287896339,0.39624123,2636.2,2636.1,33.02459347]
[1724287901498,0.39624123,2636.2,2636.1,34.48159347]
[1724287903592,0.39624123,2636.2,2636.1,38.27507347]
[1724287904582,0.39624123,2636.2,2636.1,38.82507347]
[1724287904890,0.39624123,2636.2,2636.1,43.82145063]
[1724287905255,0.39624123,2636.2,2636.1,45.14041973]
[1724287905591,0.39624123,2636.2,2636.1,40.91135174]
[1724287905802,0.39624123,2636.2,2636.1,39.20497347]
[1724287911390,0.39624123,2636.2,2636.1,40.5239597]
[1724287911904,0.39624123,2636.2,2636.1,38.82507347]
[1724287912107,0.39624123,2636.2,2636.1,39.20497347]
[1724287913422,0.39624123,2636.2,2636.1,40.52395376]
[1724287913737,0.39624123,2636.2,2636.1,39.20497347]
[1724287917261,0.39624123,2636.2,2636.1,36.81807347]
[1724287920858,0.39624123,2636.2,2636.1,37.58538264]
[1724287921747,0.39624123,2636.2,2636.1,37.19797347]
[1724287922095,0.39624123,2636.2,2636.1,37.67273001]
[1724287922291,0.39624123,2636.2,2636.1,38.22273001]
[1724287923631,0.39624123,2636.2,2636.1,33.49935001]
[1724287923831,0.39624123,2636.2,2636.1,32.40720952]
[1724287924231,0.39624123,2636.2,2636.1,30.14390952]
[1724287925893,0.39624123,2636.2,2636.1,32.98660952]
[1724287926261,0.39624123,2636.2,2636.1,41.98576581]
[1724287926748,0.39624123,2636.2,2636.1,38.95188747]
[1724287927047,0.39624123,2636.2,2636.1,45.91816818]
[1724287927208,0.39624123,2636.2,2636.1,42.88428629]
[1724287927412,0.39624123,2636.2,2636.1,42.49687712]
[1724287927945,0.39624123,2636.2,2636.1,43.81585253]
[1724287928943,0.39624123,2636.2,2636.1,45.79431912]
[1724287929350,0.39624123,2636.2,2636.1,44.17157676]
[1724287929649,0.39624123,2636.2,2636.1,45.7943234]
[1724287929996,0.39624123,2636.2,2636.1,49.5878034]
[1724287930241,0.39624123,2636.2,2636.1,46.14999221]
[1724287930914,0.39624123,2636.2,2636.1,49.94347221]
[1724287931319,0.03149392,2636.2,2636.1,50.73623704]
[1724287931513,2.2817,2637.3,2637.0,3.79212]
[1724287931763,0.08605109,2637.2,2637.1,7.58408]
[1724287932233,3.9092,2637.6,2637.2,3.79189]
[1724287933076,3.9092,2637.6,2637.3,3.79173]
[1724287935766,0.08647074,2637.5,2637.3,3.79173]
[1724287937517,0.08647074,2637.5,2637.3,7.5834]
[1724287937749,0.08647074,2637.5,2637.3,3.79167]
[1724287938268,0.08647074,2637.5,2637.3,3.79166]
[1724287940422,0.08647074,2637.5,2637.3,4.170826]
[1724287940620,0.08647074,2637.5,2637.4,7.58322]
[1724287940817,0.08647074,2637.5,2637.4,11.39202]
[1724287941075,0.59459702,2639.1,2638.0,3.79064]
[1724287941076,3.8053,2638.4,2638.0,3.79064]
[1724287941234,3.8053,2638.4,2638.1,3.7906]
[1724287941235,4.18583,2638.4,2638.1,3.7906]
[1724287941573,0.08750085,2638.3,2638.1,7.58112]
[1724287941727,0.08750085,2638.3,2638.1,3.79052]
[1724287942178,3.8053,2638.6,2638.1,3.79052]
[1724287942334,0.08771216,2638.2,2638.1,3.79052]
[1724287942558,0.759511,2638.5,2637.9,3.79079]
[1724287942776,0.08766682,2638.2,2637.9,3.79079]
[1724287942959,2.3483,2638.2,2637.9,3.79079]
[1724287943164,0.08747762,2638.1,2637.9,3.79079]
[1724287944193,0.08747762,2638.1,2637.7,3.79106]
[1724287944511,0.08747762,2638.1,2637.9,3.79085]
[1724287945216,0.08747762,2638.1,2637.9,7.58164]
[1724287945515,0.08747762,2638.1,2637.9,7.5816]
[1724287945714,0.08747762,2638.1,2637.9,3.79079]
[1724287946606,0.33105538,2638.1,2637.9,3.79079]
[1724287946811,2.3483,2638.0,2637.7,3.79105]
[1724287946968,2.3483,2638.0,2637.8,3.79103]
[1724287947168,0.08738328,2637.9,2637.8,3.79103]
[1724287947581,3.8053,2638.2,2637.8,3.79103]
[1724287947806,0.08737925,2637.9,2637.8,3.79103]
[1724287948084,0.08744728,2637.9,2637.8,3.79103]
[1724287948424,4.564847,2638.2,2637.8,3.79103]
[1724287948631,2.3483,2637.8,2637.7,7.58212]
[1724287948793,2.59187392,2637.8,2637.7,7.58212]
[1724287948995,2.4359354,2637.8,2637.7,7.58212]
[1724287949491,2.3173,2638.0,2637.8,3.79093]
[1724287950052,0.08764703,2637.9,2637.8,3.79093]
[1724287950559,0.08595768,2637.9,2637.8,3.79093]
[1724287951349,0.39661489,2638.1,2637.8,3.79093]
[1724287951542,0.08606631,2638.0,2637.8,3.79093]
[1724287951742,0.08606631,2638.0,2637.9,3.79089]
[1724287956465,0.08606631,2638.0,2637.9,7.58178]
[1724287956767,0.39661489,2638.1,2638.0,3.79075]
[1724287957240,0.39661489,2638.1,2637.9,3.79089]
[1724287957438,0.4826946,2638.1,2637.9,3.79089]
[1724287957753,2.4074,2638.0,2637.9,3.79089]
[1724287958137,2.49339376,2638.0,2637.9,3.79089]
[1724287960316,2.49339376,2638.0,2637.7,27.02219]
[1724287961166,2.49339376,2638.0,2637.7,19.44]
[1724287961582,2.4074,2638.0,2637.7,19.44]
[1724287961880,3.59161849,2638.0,2637.7,19.44]
[1724287962027,0.08578812,2637.9,2637.7,19.44]
[1724287962477,3.59161849,2638.0,2637.7,19.44]
[1724287962945,0.08578812,2637.9,2637.7,19.44]
[1724287963271,0.08578812,2637.9,2637.7,23.23118]
[1724287965582,0.08578812,2637.9,2637.7,3.79118]
[1724287966379,0.08578812,2637.9,2637.7,7.58227]
[1724287966583,0.08578812,2637.9,2637.8,7.58206]
[1724287966950,0.39661489,2638.1,2637.9,3.79076]
[1724287967271,0.08586351,2638.0,2637.9,3.79076]
[1724287970679,0.08586351,2638.0,2637.9,7.58165]
[1724287970887,0.39661489,2638.1,2638.0,3.79075]
[1724287971282,0.39661489,2638.1,2638.0,9.8869]
[1724287971478,0.39661489,2638.1,2638.0,10.87559]
[1724287972069,0.39661489,2638.1,2638.0,9.8869]
[1724287972309,1.457,2638.6,2638.1,3.79058]
[1724287973766,5.24689,2638.6,2638.0,6.09615]
[1724287974115,5.24689,2638.6,2638.0,9.8868]
[1724287974116,0.767989,2638.5,2638.0,9.8868]
[1724287974479,0.767989,2638.5,2638.1,3.79058]
[1724287975177,0.767989,2638.5,2638.0,3.79065]
[1724287975709,1.457,2638.4,2638.0,3.79065]
[1724287975884,2.4374949,2638.4,2638.0,3.79065]
[1724287976867,2.3078,2638.3,2638.0,3.79065]
[1724287977300,6.0982,2638.3,2637.8,3.79096]
[1724287977509,6.0982,2638.3,2637.5,21.8958]
[1724287977510,1.457,2638.2,2637.5,21.8958]
[1724287977721,0.37648,2638.1,2637.6,3.7913]
[1724287978083,0.08607639,2638.0,2637.6,3.7913]
[1724287978623,1.457,2637.8,2637.5,19.44]
[1724287978967,0.08583359,2637.7,2637.5,19.44]
[1724287979211,1.457,2637.8,2637.5,19.44]
[1724287979595,0.08588653,2637.7,2637.5,19.44]
[1724287980062,6.002947,2637.8,2637.5,19.44]
[1724287980693,0.08555776,2637.6,2637.5,19.44]
[1724287980905,6.002947,2637.8,2637.4,19.44]
[1724287981111,0.08560313,2637.6,2637.4,19.44]
[1724287981286,6.002947,2637.8,2637.4,19.44]
[1724287981498,0.08549446,2637.5,2637.4,19.44]
[1724287981701,0.08551714,2637.5,2637.4,19.44]
[1724287982128,1.457,2637.8,2637.4,19.44]
[1724287982435,0.39641304,2637.5,2637.4,19.44]
[1724287982801,0.4819075,2637.5,2637.4,19.44]
[1724287983403,0.4819075,2637.5,2637.4,23.23161]
[1724287983736,0.4819075,2637.5,2637.4,29.40742]
[1724287983737,0.39641304,2637.5,2637.4,29.40742]
[1724287984031,0.39641304,2637.5,2637.4,33.097162]
[1724287989114,0.39641304,2637.5,2637.4,36.097162]
[1724287991447,7.56503,2638.5,2637.9,3.7908]
[1724287991653,3.775,2638.5,2638.1,3.7906]
[1724287991832,0.08620109,2638.4,2638.1,3.7906]